Cogmind - Beta 15 --- EXPLORER MODE // 2025.08.20 @ 20:51:30 Player: Aydz Result: Self-destructed Performance ------------- Evolutions (3) 1500 Regions Visited (4) 800 Robots Destroyed (94) 470 Value Destroyed (2928) 2928 Prototype IDs (28) 560 Alien Tech Used (0) 0 Bonus (0) 0 TOTAL SCORE: 6258 Bonus ------- None Cogmind --------- Core Integrity 680/700 Matter 215/300 Energy 275/275 System Corruption 0% Temperature Cool (0) Movement Treading (160) Location -7/Factory Parts ------- > --- POWER (1+3) ------ Deuterium Engine > --- PROPULSION (3) --- Medium Treads Medium Treads Medium Treads > --- UTILITY (8) ------ Large Storage Unit Improved Sensor Array Improved Signal Interpreter Improved Signal Interpreter Improved Terrain Scanner Advanced Targeting Computer Improved Medium Armor Plating Power Bank > --- WEAPON (2) ------- Enhanced Autogun Enhanced Autogun > --- INVENTORY (15) --- Medium Treads Cesium-ion Thruster Improved VTOL Module Improved VTOL Module Xenon Bombardment Thruster Improved Medium Armor Plating Gun Armor Heavy Ion Cannon Heavy Ion Cannon Minigun Flak Gun Flak Cannon Flak Cannon Enhanced Flamer Peak State ------------ > --- POWER ------------ Deuterium Engine > --- PROPULSION ------- Medium Treads Medium Treads Medium Treads > --- UTILITY ---------- Large Storage Unit Improved Sensor Array Improved Signal Interpreter Improved Signal Interpreter Improved Terrain Scanner Advanced Targeting Computer Improved Medium Armor Plating Power Bank > --- WEAPON ----------- Enhanced Autogun Enhanced Autogun > --- INVENTORY -------- Medium Treads Improved VTOL Module Improved VTOL Module Xenon Bombardment Thruster Xenon Bombardment Thruster Sensor Array Improved Medium Armor Plating Gun Armor Heavy Ion Cannon Heavy Ion Cannon Minigun High-powered Shotgun Flak Cannon Flak Cannon Enhanced Flamer [Rating: 57] Favorites ----------- Power Ion Engine Engine Ion Engine Power Core Nuclear Core Propulsion Spiked Treads Treads Spiked Treads Leg Titanium Leg Hover Unit Aerolev Unit Utility Large Storage Unit Device Power Bank Storage Large Storage Unit Processor Targeting Computer Protection Light Armor Plating Weapon Light Cannon Energy Gun Heavy EM Shotgun Energy Cannon Heavy Ion Cannon Ballistic Gun Barrage Gun Ballistic Cannon Light Cannon Special Weapon Flamer Build | -11 -10 -10 -8 -7 ------- Run | Yrd Mat Sub Mat Fac Slots Evolved 7 | . 1 . 4 2 Power . | . . . . . Propulsion 1 | . . . . 1 Utility 6 | . 1 . 4 1 Weapon . | . . . . . Parts Attached 76 | 7 9 16 40 4 Power 7 | 1 . 3 3 . Engine 6 | 1 . 3 2 . Core 1 | . . . 1 . Reactor . | . . . . . Propulsion 18 | 2 . 3 12 1 Treads 15 | 2 . 3 9 1 Leg 1 | . . . 1 . Wheel . | . . . . . Hover 2 | . . . 2 . Flight . | . . . . . Utility 30 | 2 6 3 17 2 Device 15 | . . 2 12 1 Storage 3 | 1 2 . . . Processor 7 | 1 1 . 4 1 Hackware . | . . . . . Protection 5 | . 3 1 1 . Artifact . | . . . . . Weapon 21 | 2 3 7 8 1 Energy Gun 2 | 1 . . 1 . Energy Cannon 2 | . . . 2 . Ballistic Gun 10 | 1 . 3 5 1 Ballistic Cannon 6 | . 3 3 . . Launcher . | . . . . . Special Weapon 1 | . . 1 . . Impact Weapon . | . . . . . Slashing Weapon . | . . . . . Piercing Weapon . | . . . . . Special Melee Weapon . | . . . . . Unidentified Prototypes 5 | . . 1 4 . Parts Lost 4 | . . 2 2 . Power 1 | . . 1 . . Propulsion 1 | . . 1 . . Utility 2 | . . . 2 . Weapon . | . . . . . Highest Loss Streak 1 | . . 1 1 . To Critical Strikes . | . . . . . Average Backups 7 | . 1 4 12 14 Power . | . . . . . Propulsion 2 | . . . 5 5 Utility 1 | . 1 1 1 2 Weapon 3 | . . 3 5 7 Tool/Special . | . . . . . Unused Backups 18 | . . . 7 11 Power . | . . . . . Propulsion 12 | . . . 6 6 Utility 2 | . . . . 2 Weapon 4 | . . . 1 3 Tool/Special . | . . . . . Average Slot Usage (%) 80 | . 93 80 76 81 Engine 6 | . 11 7 2 5 Core 1 | . . . 3 . Treads 17 | . 18 20 12 17 Device 11 | . . 5 21 17 Storage 8 | . 12 10 6 5 Processor 11 | . 12 10 12 16 Protection 4 | . 12 4 1 5 Energy Gun 1 | . 5 . 2 . Ballistic Gun 4 | . . 2 8 11 Ballistic Cannon 10 | . 17 18 . . Peak Build Rating 57 | 7 8 40 49 57 Average Rating 26 | 5 7 17 41 56 On Entrance 17 | . 7 8 22 49 Naked Turns . | . . . . . Heaviest Build 57 | 19 34 40 57 47 Greatest Support 84 | 40 40 40 56 84 Greatest Overweight (x) 13 | 5 11 1 13 . Average Overweight (x) . | . . . . . Largest Inventory Capacity 25 | 10 25 15 15 15 Average Capacity 14 | 9 14 15 15 15 Most Carried 15 | 2 3 15 15 15 Average Carried 7 | . 1 4 12 14 Final Capacity 15 | 10 15 15 15 15 Final Carried 15 | 2 3 6 15 14 Class Distribution -------------------- 83% | Hacker-Mutant 13% | Hacker-Skirmisher Dominant Class ---------------- Hacker-Mutant | -10/Materials Hacker-Mutant | -10/Subcaves Hacker-Mutant | -8/Materials Hacker-Skirmisher | -7/Factory Resources | -11 -10 -10 -8 -7 ----------- Run | Yrd Mat Sub Mat Fac Matter Collected 3034 | 210 360 1092 1247 125 Remotely . | . . . . . Salvage Created 3169 | . 465 430 2121 153 Parts 171 | . 21 24 119 7 Haulers Intercepted 6 | . 1 . 5 . Recyclers Shooed . | . . . . . Parts Field Recycled . | . . . . . Retrieved Matter . | . . . . . Parts Self-Destructed . | . . . . . Prevented . | . . . . . Kills | -11 -10 -10 -8 -7 ------- Run | Yrd Mat Sub Mat Fac Combat Hostiles Destroyed 72 | . 8 20 42 2 Guns 50 | . 5 1 42 2 Cannons 22 | . 3 19 . . Classes Destroyed 13 | . 5 2 5 1 Worker 2 | . . . 2 . Builder 1 | . . . 1 . Hauler 6 | . 1 . 5 . Recycler 2 | . 2 . . . Turret 2 | . . 2 . . Watcher 9 | . 3 . 5 1 Swarmer 17 | . 4 1 12 . Grunt 19 | . 4 . 15 . Brawler 1 | . . . 1 . Duelist 1 | . . . 1 . Sentry 14 | . . . 13 1 Programmer 1 | . . . . 1 Subdweller 19 | . . 19 . . Best Kill Streak 14 | . 4 3 14 1 Combat Bots Only 5 | . 4 3 5 1 Max Kills in Single Turn 2 | . 1 1 2 1 Gunslinging 1 | . . . 1 . Exploded . | . . . . . Melee . | . . . . . Uniques/NPCs Destroyed . | . . . . . Combat | -11 -10 -10 -8 -7 -------- Run | Yrd Mat Sub Mat Fac Hostile Shots Fired 464 | . 72 128 170 94 Missed 164 | . 19 51 56 38 Hits 300 | . 53 77 114 56 Projectile 300 | . 53 77 114 56 AOE 8 | . . 7 1 . Critical Strikes 5 | . . . 4 1 Part Disruptions 1 | . . . 1 . Damage Taken 2401 | . 274 953 920 254 Core 294 | . 16 109 149 20 Absorbed by Shields . | . . . . . Ignored by Resistances 1511 | . 197 542 579 193 Regen/Repaired (Parts) 106 | . . . 106 . Core Remaining (%) 74 | 100 . 50 72 . Volleys Fired 262 | . 31 99 112 20 Largest 2 | . 2 2 2 2 Hottest 130 | . 80 73 130 50 Shots Fired 522 | . 62 199 221 40 Gun 287 | . 27 13 207 40 Cannon 235 | . 35 186 14 . Launcher . | . . . . . Special . | . . . . . Kinetic 447 | . 35 199 173 40 Thermal 31 | . 27 . 4 . Explosive . | . . . . . Electromagnetic 44 | . . . 44 . Robot Hit Streak 47 | . 16 45 47 33 Robot Miss Streak 2 | . 1 1 2 1 Penetration Max . | . . . . . Secondary Targets 6 | . . . 6 . Max Gunslinging Chain 1 | . . . 1 . Shots Hit Robots 376 | . 41 129 172 34 Core Hits 154 | . 17 34 96 7 Critical Kills 1 | . . . 1 . Critical Parts Destroyed 1 | . . 1 . . Critical Strikes 10 | . 1 8 1 . Burn 1 | . 1 . . . Destroy 3 | . . 2 1 . Blast 6 | . . 6 . . Melee Attacks . | . . . . . Impact . | . . . . . Slashing . | . . . . . Piercing . | . . . . . Sneak Attacks . | . . . . . Combat Hostiles . | . . . . . Follow-up Attacks . | . . . . . Damage Inflicted 7522 | . 641 2613 3657 611 Guns 4408 | . 261 158 3378 611 Cannons 2993 | . 380 2455 158 . Explosions 121 | . . . 121 . Melee . | . . . . . Ramming . | . . . . . Kinetic 6207 | . 380 2613 2603 611 Thermal 398 | . 261 . 137 . Explosive . | . . . . . Electromagnetic 917 | . . . 917 . Impact . | . . . . . Slashing . | . . . . . Piercing . | . . . . . Highest Corruption 1 | . 1 1 1 . Average Corruption 1 | . 1 1 1 . Corruption Purged . | . . . . . Corruption Blocked . | . . . . . Effects 57 | . . 36 21 . Message Errors 10 | . . 4 6 . Matter Fused 8 | . . 6 2 . Heat Flow Errors 8 | . . 5 3 . Energy Discharges 11 | . . 7 4 . Parts Rejected 1 | . . . 1 . Parts Fused 1 | . . 1 . . Data Loss (minor) 10 | . . 7 3 . Data Loss (major) 2 | . . 2 . . Misfires 2 | . . 1 1 . Alerts 4 | . . 3 1 . Overload Shots . | . . . . . Overflow Damage 54 | . 22 32 . . Projectiles 54 | . 22 32 . . Explosions . | . . . . . Melee . | . . . . . Knockbacks 25 | . 4 21 . . Impact . | . . . . . Kinetic 25 | . 4 21 . . Secondary . | . . . . . Self-Inflicted Damage . | . . . . . Shots . | . . . . . Rammed . | . . . . . Targets Rammed . | . . . . . Kicked . | . . . . . Crushed . | . . . . . Highest Temperature 324 | . 324 216 228 35 Average Temperature 52 | . 91 81 20 19 Received Heat Transfer 1146 | . 30 321 675 120 Siege Activations . | . . . . . Martial Activations . | . . . . . Shielding Activations . | . . . . . Robots Disrupted . | . . . . . Combat Hostiles . | . . . . . Robots Corrupted . | . . . . . Combat Hostiles . | . . . . . Parts Fried 3 | . . . 3 . Impact Corruptions . | . . . . . Robots Melted . | . . . . . Combat Hostiles . | . . . . . Parts Melted . | . . . . . Heat Transferred 1025 | . 851 . 174 . Parts Sabotaged . | . . . . . Parts Stolen . | . . . . . Parts Stripped . | . . . . . Power Chain Reactions 1 | . . . 1 . Alert | -11 -10 -10 -8 -7 ------- Run | Yrd Mat Sub Mat Fac Maximum Alert Level . | . . . . . Low Security (%) 100 | 100 100 . 100 100 Level 1 . | . . . . . Level 2 . | . . . . . Level 3 . | . . . . . Level 4 . | . . . . . Level 5 . | . . . . . High Security . | . . . . . Max Security . | . . . . . Peak Influence 198 | . 86 . 198 30 Initial . | . . . . . Average 21 | . 8 . 30 3 Influence Increases 1717 | . 266 150 1230 71 Destroy 0b10 Robot/C 1100 | . 160 60 840 40 Destroy 0b10 Robot/NC 100 | . 30 . 65 5 Destroy Leader 320 | . 48 . 250 22 Successful Hack 54 | . 27 . 27 . Disable Machine 24 | . . . 20 4 Destroy Structure 14 | . 1 . 13 . Lose Combat Pursuer 105 | . . 90 15 . Influence Decreases 1710 | . 266 150 1230 64 Time Decay 1695 | . 266 150 1215 64 Lost Part 15 | . . . 15 . Squads Dispatched 9 | . . . 8 1 Investigation . | . . . . . Extermination 1 | . . . . 1 Reinforcement 2 | . . . 2 . Assault . | . . . . . Garrison 6 | . . . 6 . Intercept . | . . . . . Searches Triggered . | . . . . . Construction Impeded . | . . . . . Haulers Reinforced . | . . . . . Active Scanning Responses . | . . . . . Cargo Convoy Interrupts . | . . . . . Stealth | -11 -10 -10 -8 -7 --------- Run | Yrd Mat Sub Mat Fac Distress Signals 6 | . . . 6 . Communications Jammed . | . . . . . Distress Signals . | . . . . . Times Spotted 93 | . 11 26 53 3 Peak Tracking Total 4 | . 4 3 4 1 Tactical Retreats 4 | . . 3 1 . Traps | -11 -10 -10 -8 -7 ------- Run | Yrd Mat Sub Mat Fac Traps Triggered 7 | . 5 1 1 . Indirectly . | . . . . . Trap Hack Attempts . | . . . . . Triggered . | . . . . . Disarmed . | . . . . . Reprogrammed . | . . . . . Reused . | . . . . . Traps Extracted . | . . . . . Installed . | . . . . . Triggered . | . . . . . Machines | -11 -10 -10 -8 -7 ---------- Run | Yrd Mat Sub Mat Fac Machines Disabled 9 | . . 3 5 1 Max in Single Turn 2 | . . 1 2 1 Machines Repaired . | . . . . . Machines Dismantled . | . . . . . Machines Sabotaged . | . . . . . Overloaded Fab Kills . | . . . . . Hacking | -11 -10 -10 -8 -7 --------- Run | Yrd Mat Sub Mat Fac Machines Accessed 30 | . 10 4 14 2 Terminals 19 | . 8 . 10 1 Fabricators . | . . . . . Repair Stations 1 | . . . 1 . Recycling Units 5 | . 2 . 2 1 Scanalyzers 1 | . . . 1 . Garrison Access . | . . . . . Total Hacks 100 | . 42 9 44 5 Successful 68 | . 26 9 32 1 Failed 32 | . 16 . 12 4 Catastrophic 4 | . 1 . 2 1 Database Lockouts . | . . . . . Manual 73 | . 37 . 34 2 Terminals 70 | . 35 . 33 2 Fabricators . | . . . . . Repair Stations 2 | . . . 2 . Recycling Units 15 | . 7 . 5 3 Scanalyzers 4 | . . . 4 . Garrison Access . | . . . . . Terminal Hacks 25 | . 8 9 8 . Record 6 | . . 6 . . Prototype ID Bank 10 | . 5 . 5 . Open Door 1 | . . 1 . . Branch Access Points 1 | . . . 1 . Terminal Index 1 | . 1 . . . Hauler Manifests 2 | . 1 . 1 . Registered Components 2 | . 1 . 1 . Proto ID Catalog 1 | . . 1 . . Release Object 1 | . . 1 . . Fabricator Hacks . | . . . . . Repair Station Hacks 2 | . . . 2 . Scan Component 1 | . . . 1 . Repair 1 | . . . 1 . Recycling Unit Hacks 4 | . 2 . 2 . Retrieve Components 4 | . 2 . 2 . Scanalyzer 3 | . . . 3 . Insert Component 2 | . . . 2 . Analyze 1 | . . . 1 . Garrison Access Hacks . | . . . . . Unauthorized Hacks 34 | . 16 . 17 1 Terminals 30 | . 13 . 16 1 Botnet 16 | . 7 . 9 . Operators 3 | . 1 . 1 1 Skim 11 | . 5 . 6 . Fabricators . | . . . . . Repair Stations . | . . . . . Recycling Units 4 | . 3 . 1 . Reject 3 | . 2 . 1 . Recyclers 1 | . 1 . . . Scanalyzers . | . . . . . Garrison Access . | . . . . . Data Cores Recovered . | . . . . . Used . | . . . . . Hacking Detections 26 | . 10 . 14 2 Full Trace Events 1 | . 1 . . . Feedback Events 1 | . 1 . . . Corruption 1 | . 1 . . . Feedback Blocked . | . . . . . Robot Schematics Acquired . | . . . . . Robots Built . | . . . . . Authchips . | . . . . . Time . | . . . . . Total Robot Build Rating . | . . . . . Part Schematics Acquired 1 | . . . 1 . Parts Built . | . . . . . Authchips . | . . . . . Time . | . . . . . Total Part Build Rating . | . . . . . Parts Repaired 1 | . . . 1 . Time 38 | . . . 38 . Parts Recycled . | . . . . . Recycled Matter . | . . . . . Retrieved Matter . | . . . . . Retrieved Components 30 | . 10 . 20 . Parts Scanalyzed 1 | . . . 1 . Part Schematics Acquired 1 | . . . 1 . Parts Damaged 1 | . . . 1 . Bothacking | -11 -10 -10 -8 -7 ------------ Run | Yrd Mat Sub Mat Fac Used RIF Installer . | . . . . . Robots Hacked . | . . . . . Non-combat . | . . . . . Combat . | . . . . . Robot Hacks Applied . | . . . . . Relay Couplers Released . | . . . . . Fabnet Peak Effective % . | . . . . . Robots Rewired . | . . . . . Allies Hacked . | . . . . . Hacks Repelled . | . . . . . Allies | -11 -10 -10 -8 -7 -------- Run | Yrd Mat Sub Mat Fac Total Allies . | . . . . . Largest Group . | . . . . . Highest-Rated Group . | . . . . . Highest-Rated Ally . | . . . . . Total Orders . | . . . . . Ally Attacks . | . . . . . Total Damage . | . . . . . Kills . | . . . . . Allies Corrupted . | . . . . . Allies Melted . | . . . . . Intel | -11 -10 -10 -8 -7 ------- Run | Yrd Mat Sub Mat Fac Active Infowar (turns) 3434 | . . . 2938 496 Sensors 2509 | . . . 2013 496 Terrain 1916 | . . . 1420 496 T.N.C. 229 | . . . 229 . Machine Analysis 75 | . . . 75 . Robot Analysis Total . | . . . . . Derelict Logs Recovered 1 | . . 1 . . Drone Launches . | . . . . . Drone Recoveries . | . . . . . Exploration | -11 -10 -10 -8 -7 ------------- Run | Yrd Mat Sub Mat Fac Turns Passed 8914 | 79 1444 3580 3315 496 Spaces Moved 4595 | 43 673 2007 1600 272 Core 61 | 5 54 . 2 . Treads 4534 | 38 619 2007 1598 272 Legs . | . . . . . Wheels . | . . . . . Hover . | . . . . . Flight . | . . . . . Fastest Speed 50 | 50 160 160 145 160 Average Speed 169 | 157 195 160 172 160 Slowest Speed 700 | 300 600 260 700 160 Overloaded Moves . | . . . . . Propulsion Burnouts . | . . . . . Robots Hopped . | . . . . . Potential Cave-ins . | . . . . . Cave-ins Triggered . | . . . . . Exploration Rate (%) 60 | 4 100 93 98 8 Regions Visited 4 Branch Regions 1 Pre-discovered Areas 2 | . . 1 1 . Known Exits Taken 4 | 1 1 1 1 . Unknown Exits Taken . | . . . . . Scrap Searched 7 | . . 7 . . Spaces Dug . | . . . . . Terrain Destroyed 14 | . . 3 11 . Melee . | . . . . . Projectile 8 | . . 3 5 . AOE 6 | . . . 6 . Terrain Rammed . | . . . . . Walls Destroyed . | . . . . . Machines Disabled . | . . . . . Actions | -11 -10 -10 -8 -7 --------- Run | Yrd Mat Sub Mat Fac Total 5224 | 51 734 2165 1966 308 Wait 164 | . 8 11 138 7 Move 4591 | 42 672 2006 1599 272 Hop . | . . . . . Pick Up 33 | 2 . 7 23 1 Fast Attach 63 | 7 11 13 31 1 Attach 3 | . 1 . 1 1 Detach 10 | . . 5 5 . Swap 28 | . 6 4 15 3 Drop 69 | . 5 19 42 3 Fire 262 | . 31 99 112 20 Melee . | . . . . . Ram . | . . . . . Kick . | . . . . . Crush . | . . . . . Escape Stasis . | . . . . . Rewire . | . . . . . Trap . | . . . . . Miscellaneous 1 | . . 1 . . Route ------- -11/Scrapyard -10/Materials (discovered 6 exits: *Mat x3 / *Min x2 / *Sub) -10/Subcaves (discovered 4 exits: *Mat x2 / *Rec / [*Scr]) -8/Materials (discovered 3 exits: *Fac x3) -7/Factory (discovered 6 exits: Fac x4 / *Low x2) History --------- Turn | Location | Event 16 | -11/Scrapyard | Identified exit to Materials 16 | -11/Scrapyard | Discovered exit to Materials (range 15) 80 | -11/Scrapyard | Entered Materials 80 | -10/Materials | Evolved 1 slot: Utility x1 241 | -10/Materials | Identified exit to Materials 241 | -10/Materials | Discovered exit to Materials (range 13) 274 | -10/Materials | Identified exit to Mines 274 | -10/Materials | Discovered exit to Mines (range 16) 312 | -10/Materials | Build established: Hacker-Mutant 342 | -10/Materials | Discovered exit to Mines (range 16) 646 | -10/Materials | Discovered exit to Materials (range 8) 793 | -10/Materials | Discovered exit to Materials (range 13) 980 | -10/Materials | Learned Storage terminal intel 1000 | -10/Materials | Learned 4 Subcaves zone layouts 1005 | -10/Materials | Identified exit to Subcaves 1017 | -10/Materials | Learned 4 Subcaves zone layouts 1039 | -10/Materials | Learned Materials emergency access door positions 1073 | -10/Materials | Learned location of 3 exits from Materials 1524 | -10/Materials | Entered Subcaves 1525 | -10/Subcaves | Approached by a straggling Scientist 1525 | -10/Subcaves | Identified exit to Materials 1982 | -10/Subcaves | Shifting Twisted Machinery released Flamer 2013 | -10/Subcaves | Shifting Twisted Machinery released Mak. Light Armor Plating 2598 | -10/Subcaves | Scientist uncovered a shortcut to Scraptown 2752 | -10/Subcaves | Identified exit to Recycling 2752 | -10/Subcaves | Discovered exit to Recycling (range 15) 2816 | -10/Subcaves | Shifting Twisted Machinery released Sub. Machine Gun 2846 | -10/Subcaves | Shifting Twisted Machinery released Slug Cannon 2974 | -10/Subcaves | A Subdweller sparked back to life 2974 | -10/Subcaves | A Subdweller sparked back to life 3013 | -10/Subcaves | Found Prototype Device 3013 | -10/Subcaves | Identified Power Bank 3014 | -10/Subcaves | Attached Power Bank, gained temporary slots: Power x3 3044 | -10/Subcaves | Found SUBCON Basin 3060 | -10/Subcaves | Released subatomizers from SUBCON Basin 3198 | -10/Subcaves | Learned Materials terminal intel 3232 | -10/Subcaves | Disturbed a concealed Subdweller 3361 | -10/Subcaves | Ambushed by Subdweller buried in earth 4158 | -10/Subcaves | Visited 4L-MR0's lab 4172 | -10/Subcaves | Found Gun Armor 4496 | -10/Subcaves | Shifting Twisted Machinery released Sub. Beam Cannon 4502 | -10/Subcaves | Shifting Twisted Machinery released Spk. Treads 4698 | -10/Subcaves | Visited Clippyterm 4703 | -10/Subcaves | Learned Factory garrison access intel 4703 | -10/Subcaves | Learned location of Section 7 (-2) 4897 | -10/Subcaves | A swath of the cavern ceiling suddenly collapsed 4974 | -10/Subcaves | A swath of the cavern ceiling suddenly collapsed 5049 | -10/Subcaves | Disturbed a concealed Subdweller 5104 | -10/Subcaves | Entered Materials 5104 | -8/Materials | Evolved 4 slots: Utility x4 5105 | -8/Materials | Identified exit to Factory 5107 | -8/Materials | Loaded intel: 12 terminal locations 5380 | -8/Materials | Garrison activated, responded to threat 6096 | -8/Materials | Repaired Barrage Gun 6740 | -8/Materials | Garrison activated, responded to threat 7374 | -8/Materials | Garrison activated, responded to threat 7975 | -8/Materials | Garrison activated, responded to threat 8020 | -8/Materials | Build established: Hacker-Skirmisher 8205 | -8/Materials | Learned 4 Recycling zone layouts 8240 | -8/Materials | Learned 8 Factory zone layouts 8283 | -8/Materials | Learned Storage emergency access door positions 8291 | -8/Materials | Learned location of Extension (-4) 8300 | -8/Materials | Learned Factory emergency access door positions 8419 | -8/Materials | Entered Factory 8419 | -7/Factory | Evolved 2 slots: Propulsion x1, Utility x1 8420 | -7/Factory | Identified exit to Factory 8421 | -7/Factory | Identified exit to Lower Caves 8423 | -7/Factory | Loaded intel: 3 garrison access locations 8756 | -7/Factory | Discovered exit to Lower Caves (range 5) 8915 | -7/Factory | Self-destructed Last Messages --------------- 08628_ Acquired 75 matter. 08631_ Dropped Hpw. Shotgun. 08651_ Connecting with DSF Access... 08702_ ALERT: Potential suspicious activity detected, Programmers report to Factory Zone 9I. 08752_ Dropped Xenon Bombardment Thruster. 08752_ Acquired Cesium-ion Thruster. 08756_ EXIT=FOUND: LOWER CAVES 08801_ P-60 Hacker destroyed. 08803_ Acquired 50 matter. 08840_ Connecting with Terminal... >>Trojan(Operators) Trojan loaded successfully. Testing... Operator tracking enabled and active. 08845_ K-01 Serf cleans the Nuclear Reactor. 08869_ Connecting with Recycling Unit... 08903_ Destroyed Imp. Hover Unit. 08905_ W-25 Informer destroyed. 08906_ K-01 Serf collects debris. Map ----- +----------------------------------------------------+ | ?????? ?????? + """ # "" # | | ??????????? ????# """ # "" # | | ??????????????? # """ # "" # | | ????????????????+ "T" # # | | ????????????????# # """ # | | ???????????? #########+#### """ # | | ??????????? # """ # | | ??????????? # # | | ??????????? # """ # | | ???????????? + """ # | | ???????????? # """ # | | ????????????? # # | | ???????????? ######### | | ????????????? #???????? | | ????????????? #???????? | | ????????????? #???????? | | ????????????? #???????? | | ????????????? ! #???????? | | ????????????? k% #??? ???? | | ???????????? = #???????? | | ???????????? #? ?????? | | ???????????# + ??????? | | ???????????? # ????? | | ??????????????##### T# # ??? | | ??????????????????#### #? ? | | ?????????????????????####@####?? t # | | ??????????????????????? ????? ! # | | ????????????????????? #??? # | | ????????????????#??# k #???? # | | ???????????????????# #????? # | | ???????????????????# = #??????## | | ???????????????????# ! #???????? | | ???????????????????+ #???????? | | ???????????????????# #???????? | | ???????????????????###+#######? ?#???? | | ?????????????????????????????????????? | | ?????????????????????????????????????? | | ???????????????????????? ????????????? | | ?????????????????????????????????????? | | ?????????????????????????????????????? | | ?????????????????????????????????????? | | ?????????????????????????????????????? | | ?????????????????????????????????????? | | ?????????????????????????????????????? | | ?????????????????????????????????????? | | ?????????????????????????????????????? | | ?????????????????????????????????????? | | ?????????????????????????????????????? | | ?????????????????????????????????????? | | ?????????????????????????????""?""???? | +----------------------------------------------------+ Best States ------------- Heat Dissipation 59 Energy Generation 15 Energy Capacity 275 Matter Stores 300 Matter Capacity 300 Sight Range 16 Robot Scan Range 15 Terrain Scan Range 16 Terrain Scan Density 10 Base Temperature (-) 100 Armor Coverage 225 Resistance: KI 35 Resistance: TH 35 Resistance: EX 35 Resistance: EM 35 Resistance: I 35 Resistance: S 35 Resistance: P 35 Evasion (%) 40 Targeting Accuracy 8 Recoil Reduction 6 Offensive Hacking 20 Item Schematics ----------------- Enh. Flamer | -8/Materials | Scanalyzed Robot Schematics ------------------ None Fabricated ------------ Nothing Repaired ---------- Barrage Gun | 15% | -8/Materials Alien Tech Used ----------------- None Achievements -------------- None Challenges ------------ None Game ------ Seed ModifiedDeflectorMediator Manual? 0 Play Time 01:39:49 Cumulative 40.6 hours Start 2025.08.20 @ 10:13:33 End 2025.08.20 @ 20:51:30 Sessions 1 Manual Loads 0 Difficulty Explorer Special Mode None Game No. 7 Rogue 0 Adventurer 0 Explorer 7 Win Type - Total 0 Types 0/0/0/0/0/0/0/0/0/0 Lore% 17 Gallery% 19 Achievement% 24 Wizard Run 0 Options --------- Layout 0 ASCII 0 Keyboard 0 Movement Mouse Keybinds 0 Fullscreen 2 Font 24/Terminus Map View 76x50 Zoom Use 0% Tactical HUD 1 Map Filters NONE Filters NONE Steam 1 RUN: e70ad6cf-acad-4e9c-b575-e69b70b0b559